[Event "Early-Titled-Tuesday-Blitz-April-02-2024"]
[Site "Chess.com"]
[Date "2024.04.02"]
[Round "4"]
[White "Rawnsdale"]
[Black "mary-sanna"]
[Result "1-0"]
[WhiteElo "2561"]
[BlackElo "2223"]
[TimeControl "180+1"]
[EndTime "8:38:51 PDT"]
[Termination "Rawnsdale won by checkmate"]

1. e4 {[%clk 0:03:00.9]} 1... c5 {[%clk 0:03:00.1]} 2. Nf3 {[%clk 0:03:00.7]}
2... Nc6 {[%clk 0:03:00.3]} 3. d4 {[%clk 0:03:00.8]} 3... cxd4 {[%clk
0:03:01.2]} 4. Nxd4 {[%clk 0:03:01.5]} 4... g6 {[%clk 0:03:01.7]} 5. c4 {[%clk
0:03:01.4]} 5... Bg7 {[%clk 0:03:01.3]} 6. Be3 {[%clk 0:03:01.4]} 6... Qb6
{[%clk 0:02:51.2]} 7. Nb5 {[%clk 0:02:46.1]} 7... Qa5+ {[%clk 0:02:44.6]} 8.
N1c3 {[%clk 0:02:45.9]} 8... a6 {[%clk 0:02:35.2]} 9. Nd4 {[%clk 0:02:45]} 9...
d6 {[%clk 0:02:11.5]} 10. Be2 {[%clk 0:02:41.4]} 10... Nf6 {[%clk 0:02:08.8]}
11. O-O {[%clk 0:02:40.9]} 11... O-O {[%clk 0:02:09]} 12. Nd5 {[%clk 0:02:10.9]}
12... Nxd5 {[%clk 0:01:52.1]} 13. exd5 {[%clk 0:02:02.5]} 13... Nxd4 {[%clk
0:01:35.3]} 14. Bxd4 {[%clk 0:02:03.4]} 14... b5 {[%clk 0:01:20.8]} 15. Bxg7
{[%clk 0:01:58.3]} 15... Kxg7 {[%clk 0:01:21.7]} 16. Qd4+ {[%clk 0:01:53]} 16...
Kg8 {[%clk 0:01:21.7]} 17. c5 {[%clk 0:01:51.7]} 17... dxc5 {[%clk 0:01:20.2]}
18. Qxc5 {[%clk 0:01:52.6]} 18... Bf5 {[%clk 0:01:08.8]} 19. Bf3 {[%clk
0:01:49.9]} 19... Rfe8 {[%clk 0:00:39.4]} 20. Rfe1 {[%clk 0:01:43.2]} 20... Rac8
{[%clk 0:00:37.1]} 21. Qe3 {[%clk 0:01:34.7]} 21... Qb4 {[%clk 0:00:16.4]} 22.
Re2 {[%clk 0:01:25.3]} 22... Qd6 {[%clk 0:00:13.9]} 23. h3 {[%clk 0:01:17.2]}
23... Rc7 {[%clk 0:00:10.4]} 24. Rae1 {[%clk 0:01:16.1]} 24... Rec8 {[%clk
0:00:05]} 25. Qg5 {[%clk 0:01:09.6]} 25... Kg7 {[%clk 0:00:04.1]} 26. g4 {[%clk
0:01:06.5]} 26... h6 {[%clk 0:00:03.3]} 27. Qe3 {[%clk 0:00:59.9]} 27... Bc2
{[%clk 0:00:02.3]} 28. Qd4+ {[%clk 0:00:52.4]} 28... Kg8 {[%clk 0:00:01.9]} 29.
Rc1 {[%clk 0:00:39.7]} 29... a5 {[%clk 0:00:02.5]} 30. Qe3 {[%clk 0:00:35.3]}
30... Qc5 {[%clk 0:00:02.3]} 31. Qxh6 {[%clk 0:00:33.2]} 31... Qd4 {[%clk
0:00:01.2]} 32. Rd2 {[%clk 0:00:29.4]} 32... Qxb2 {[%clk 0:00:01.6]} 33. Re1
{[%clk 0:00:24.1]} 33... Qxa2 {[%clk 0:00:02]} 34. d6 {[%clk 0:00:20.6]} 34...
exd6 {[%clk 0:00:01.8]} 35. Bd5 {[%clk 0:00:20.6]} 35... Qb2 {[%clk 0:00:01.7]}
36. Rde2 {[%clk 0:00:20.2]} 36... Qg7 {[%clk 0:00:01.8]} 37. Re8+ {[%clk
0:00:19.8]} 37... Rxe8 {[%clk 0:00:01.8]} 38. Rxe8+ {[%clk 0:00:20.7]} 38... Qf8
{[%clk 0:00:02.1]} 39. Rxf8# {[%clk 0:00:21.3]} 1-0

[Event "Early-Titled-Tuesday-Blitz-April-02-2024"]
[Site "Chess.com"]
[Date "2024.04.02"]
[Round "4"]
[White "MarijaKuznecova"]
[Black "AlexanderKing"]
[Result "1-0"]
[WhiteElo "2417"]
[BlackElo "2613"]
[TimeControl "180+1"]
[EndTime "8:38:51 PDT"]
[Termination "MarijaKuznecova won on time"]

1. e4 {[%clk 0:03:00.9]} 1... e6 {[%clk 0:03:00.1]} 2. d4 {[%clk 0:03:00.7]}
2... d5 {[%clk 0:03:00.8]} 3. Nc3 {[%clk 0:03:01.4]} 3... Bb4 {[%clk 0:03:01.1]}
4. e5 {[%clk 0:03:01.7]} 4... c5 {[%clk 0:03:01.6]} 5. a3 {[%clk 0:03:02.4]}
5... Bxc3+ {[%clk 0:03:02.2]} 6. bxc3 {[%clk 0:03:03.1]} 6... Qa5 {[%clk
0:03:03.1]} 7. Bd2 {[%clk 0:03:01.1]} 7... Qa4 {[%clk 0:03:03.6]} 8. Rb1 {[%clk
0:02:58.4]} 8... c4 {[%clk 0:02:58.9]} 9. f4 {[%clk 0:02:48.3]} 9... Ne7 {[%clk
0:02:57.3]} 10. Nf3 {[%clk 0:02:45.8]} 10... Nbc6 {[%clk 0:02:55.9]} 11. g4
{[%clk 0:02:43.7]} 11... h5 {[%clk 0:02:54.9]} 12. gxh5 {[%clk 0:02:31.1]} 12...
Rxh5 {[%clk 0:02:48.6]} 13. Ng5 {[%clk 0:02:31.1]} 13... Rh4 {[%clk 0:02:30.5]}
14. Be2 {[%clk 0:02:16.4]} 14... g6 {[%clk 0:02:20]} 15. Kf2 {[%clk 0:02:11.7]}
15... b6 {[%clk 0:02:16.3]} 16. Nf3 {[%clk 0:01:58.5]} 16... Rh8 {[%clk
0:02:10.1]} 17. h4 {[%clk 0:01:56.3]} 17... Bd7 {[%clk 0:02:08.3]} 18. Ng5
{[%clk 0:01:53.2]} 18... Nf5 {[%clk 0:01:08.2]} 19. h5 {[%clk 0:01:48.3]} 19...
Ke7 {[%clk 0:01:08.6]} 20. Rc1 {[%clk 0:01:26.9]} 20... Rag8 {[%clk 0:00:59.7]}
21. hxg6 {[%clk 0:01:17.8]} 21... fxg6 {[%clk 0:00:59.5]} 22. Qg1 {[%clk
0:01:15]} 22... Be8 {[%clk 0:00:56.9]} 23. Qg2 {[%clk 0:01:03.7]} 23... Kd7
{[%clk 0:00:41.3]} 24. Bf3 {[%clk 0:00:49.8]} 24... Nce7 {[%clk 0:00:38.4]} 25.
Nh7 {[%clk 0:00:43.2]} 25... Kc7 {[%clk 0:00:21.5]} 26. Nf6 {[%clk 0:00:40.6]}
26... Rf8 {[%clk 0:00:21.7]} 27. Rh2 {[%clk 0:00:23.3]} 27... Nh4 {[%clk
0:00:16.1]} 28. Qh1 {[%clk 0:00:21.6]} 28... Nef5 {[%clk 0:00:11.6]} 29. Bg4
{[%clk 0:00:17.4]} 29... Rhg8 {[%clk 0:00:01.7]} 30. Nxg8 {[%clk 0:00:16]} 30...
Rxg8 {[%clk 0:00:02.2]} 31. Rxh4 {[%clk 0:00:16]} 31... Nxh4 {[%clk 0:00:03.1]}
32. Qxh4 {[%clk 0:00:15.9]} 32... Qd7 {[%clk 0:00:01.5]} 33. Qf6 {[%clk
0:00:14.9]} 33... Qh7 {[%clk 0:00:01.1]} 34. Bf3 {[%clk 0:00:11.1]} 1-0

[Event "Early-Titled-Tuesday-Blitz-April-02-2024"]
[Site "Chess.com"]
[Date "2024.04.02"]
[Round "4"]
[White "Mariia89"]
[Black "Likvidator228"]
[Result "0-1"]
[WhiteElo "2281"]
[BlackElo "2569"]
[TimeControl "180+1"]
[EndTime "8:38:53 PDT"]
[Termination "Likvidator228 won on time"]

1. d4 {[%clk 0:02:03.9]} 1... f5 {[%clk 0:02:55.9]} 2. g3 {[%clk 0:02:03.8]}
2... Nf6 {[%clk 0:02:55.7]} 3. Bg2 {[%clk 0:02:04.4]} 3... g6 {[%clk 0:02:56]}
4. Nf3 {[%clk 0:02:04.9]} 4... Bg7 {[%clk 0:02:56.5]} 5. c4 {[%clk 0:02:05.6]}
5... O-O {[%clk 0:02:56.5]} 6. Nc3 {[%clk 0:02:06.5]} 6... d6 {[%clk 0:02:57]}
7. O-O {[%clk 0:02:07]} 7... Nc6 {[%clk 0:02:50.1]} 8. Re1 {[%clk 0:02:06]} 8...
e5 {[%clk 0:02:49.8]} 9. d5 {[%clk 0:02:03.1]} 9... Ne7 {[%clk 0:02:43.5]} 10.
h3 {[%clk 0:01:57.4]} 10... e4 {[%clk 0:02:37.6]} 11. Nd4 {[%clk 0:01:57.7]}
11... c6 {[%clk 0:02:32.2]} 12. Bf4 {[%clk 0:01:36.4]} 12... cxd5 {[%clk
0:02:27.2]} 13. cxd5 {[%clk 0:01:36.7]} 13... a6 {[%clk 0:02:15.1]} 14. Ne6
{[%clk 0:01:23.7]} 14... Bxe6 {[%clk 0:02:14.8]} 15. dxe6 {[%clk 0:01:24]} 15...
d5 {[%clk 0:02:13.8]} 16. Be5 {[%clk 0:01:15.1]} 16... Rc8 {[%clk 0:02:13.3]}
17. e3 {[%clk 0:01:03.4]} 17... Rc6 {[%clk 0:02:11.8]} 18. Bd4 {[%clk
0:00:53.1]} 18... Rxe6 {[%clk 0:02:09.9]} 19. g4 {[%clk 0:00:51.2]} 19... fxg4
{[%clk 0:02:01.8]} 20. hxg4 {[%clk 0:00:51.2]} 20... g5 {[%clk 0:01:56.7]} 21.
Na4 {[%clk 0:00:46.4]} 21... Ng6 {[%clk 0:01:30.7]} 22. Nc5 {[%clk 0:00:41.3]}
22... Re7 {[%clk 0:01:30.8]} 23. Qb3 {[%clk 0:00:39.2]} 23... Nxg4 {[%clk
0:01:23]} 24. Bxg7 {[%clk 0:00:35.5]} 24... Kxg7 {[%clk 0:01:14.8]} 25. Re2
{[%clk 0:00:09.8]} 25... Qd6 {[%clk 0:01:01.6]} 26. Nxb7 {[%clk 0:00:05.1]}
26... Qh2+ {[%clk 0:01:00.5]} 27. Kf1 {[%clk 0:00:05.8]} 27... Ref7 {[%clk
0:00:58.8]} 28. Ke1 {[%clk 0:00:05.3]} 28... Qxg2 {[%clk 0:00:55.6]} 29. Qc3+
{[%clk 0:00:05]} 29... N6e5 {[%clk 0:00:51.8]} 30. Kd2 {[%clk 0:00:03.3]} 30...
Rxf2 {[%clk 0:00:49.3]} 31. Re1 {[%clk 0:00:02.9]} 31... Kg6 {[%clk 0:00:37.6]}
32. Nd6 {[%clk 0:00:01.8]} 32... Nf3+ {[%clk 0:00:27.1]} 33. Kd1 {[%clk
0:00:02]} 33... Nxe1 {[%clk 0:00:26.8]} 34. Rxe1 {[%clk 0:00:02.9]} 34... Rf1
{[%clk 0:00:22.7]} 35. Nb7 {[%clk 0:00:02]} 35... Rxe1+ {[%clk 0:00:22.6]} 0-1

[Event "Early-Titled-Tuesday-Blitz-April-02-2024"]
[Site "Chess.com"]
[Date "2024.04.02"]
[Round "4"]
[White "Rodalquilar"]
[Black "RantomOpening"]
[Result "1-0"]
[WhiteElo "2742"]
[BlackElo "2567"]
[TimeControl "180+1"]
[EndTime "8:38:54 PDT"]
[Termination "Rodalquilar won by checkmate"]

1. d4 {[%clk 0:03:00.9]} 1... d5 {[%clk 0:02:59]} 2. Nf3 {[%clk 0:03:01.3]} 2...
e6 {[%clk 0:02:59]} 3. Bf4 {[%clk 0:03:01.6]} 3... Nf6 {[%clk 0:02:59.1]} 4. e3
{[%clk 0:03:02]} 4... Bd6 {[%clk 0:02:59.4]} 5. Bg3 {[%clk 0:02:59.7]} 5... O-O
{[%clk 0:02:59.5]} 6. c4 {[%clk 0:03:00.1]} 6... b6 {[%clk 0:02:56.3]} 7. cxd5
{[%clk 0:02:59]} 7... exd5 {[%clk 0:02:51.2]} 8. Nc3 {[%clk 0:02:59.2]} 8... Bb7
{[%clk 0:02:06.5]} 9. Qc2 {[%clk 0:02:59.1]} 9... Ne4 {[%clk 0:02:05.9]} 10.
Nxe4 {[%clk 0:02:56.2]} 10... dxe4 {[%clk 0:02:06.8]} 11. Nd2 {[%clk 0:02:56.7]}
11... f5 {[%clk 0:02:04.2]} 12. Nc4 {[%clk 0:02:44.7]} 12... Bb4+ {[%clk
0:02:03.4]} 13. Nd2 {[%clk 0:02:35.4]} 13... c5 {[%clk 0:02:01.8]} 14. dxc5
{[%clk 0:02:26.1]} 14... bxc5 {[%clk 0:02:00.2]} 15. Bc4+ {[%clk 0:02:24.2]}
15... Kh8 {[%clk 0:01:59.9]} 16. O-O-O {[%clk 0:02:23.2]} 16... Qf6 {[%clk
0:01:49.3]} 17. a3 {[%clk 0:02:17.2]} 17... Ba5 {[%clk 0:01:25.4]} 18. Nb3
{[%clk 0:02:17.4]} 18... Bb6 {[%clk 0:01:24.1]} 19. Rd6 {[%clk 0:02:17.3]} 19...
Qe7 {[%clk 0:01:22.8]} 20. Rhd1 {[%clk 0:02:05.7]} 20... Bc7 {[%clk 0:01:12.2]}
21. Re6 {[%clk 0:02:04.8]} 21... Qf7 {[%clk 0:01:06.2]} 22. Rb6 {[%clk
0:01:07.1]} 22... Qxc4 {[%clk 0:01:04.1]} 23. Qxc4 {[%clk 0:01:02.7]} 23... Bxb6
{[%clk 0:01:04.3]} 24. Bd6 {[%clk 0:00:56.1]} 24... Rg8 {[%clk 0:01:01.4]} 25.
Nxc5 {[%clk 0:00:44.2]} 25... Bc6 {[%clk 0:00:59.4]} 26. Ne6 {[%clk 0:00:41.1]}
26... Bd7 {[%clk 0:00:34.5]} 27. Ng5 {[%clk 0:00:36.5]} 27... Be8 {[%clk
0:00:33]} 28. Qe6 {[%clk 0:00:29]} 28... Nc6 {[%clk 0:00:30.9]} 29. Kb1 {[%clk
0:00:29]} 29... Rd8 {[%clk 0:00:29.9]} 30. Rd5 {[%clk 0:00:26.7]} 30... Na5
{[%clk 0:00:20.6]} 31. Be5 {[%clk 0:00:22.6]} 31... Rxd5 {[%clk 0:00:17.6]} 32.
Qxd5 {[%clk 0:00:23.5]} 32... Nc6 {[%clk 0:00:16.7]} 33. Bc3 {[%clk 0:00:22.9]}
33... Ne7 {[%clk 0:00:16.3]} 34. Qe6 {[%clk 0:00:22.1]} 34... Bd8 {[%clk
0:00:16.3]} 35. g4 {[%clk 0:00:20.8]} 35... Bg6 {[%clk 0:00:16]} 36. h4 {[%clk
0:00:18.1]} 36... h6 {[%clk 0:00:13.8]} 37. Nf7+ {[%clk 0:00:16.2]} 37... Kh7
{[%clk 0:00:13.4]} 38. Nxd8 {[%clk 0:00:16.6]} 38... Rxd8 {[%clk 0:00:12]} 39.
Qxe7 {[%clk 0:00:17.1]} 39... Rd1+ {[%clk 0:00:11.6]} 40. Kc2 {[%clk 0:00:17]}
40... Rg1 {[%clk 0:00:11.8]} 41. Qxg7# {[%clk 0:00:16.9]} 1-0

[Event "Early-Titled-Tuesday-Blitz-April-02-2024"]
[Site "Chess.com"]
[Date "2024.04.02"]
[Round "4"]
[White "Englishman_18"]
[Black "HonestJoe1"]
[Result "0-1"]
[WhiteElo "2272"]
[BlackElo "2064"]
[TimeControl "180+1"]
[EndTime "8:38:54 PDT"]
[Termination "HonestJoe1 won on time"]

1. Nf3 {[%clk 0:02:59.1]} 1... c5 {[%clk 0:02:59.5]} 2. c4 {[%clk 0:02:57.9]}
2... Nc6 {[%clk 0:02:59.4]} 3. Nc3 {[%clk 0:02:58.1]} 3... g6 {[%clk 0:02:58]}
4. e3 {[%clk 0:02:58]} 4... Nf6 {[%clk 0:02:55.3]} 5. d4 {[%clk 0:02:58]} 5...
cxd4 {[%clk 0:02:53.3]} 6. exd4 {[%clk 0:02:58.9]} 6... d5 {[%clk 0:02:51.6]} 7.
Be2 {[%clk 0:02:31.5]} 7... Bg7 {[%clk 0:02:49.1]} 8. O-O {[%clk 0:02:31]} 8...
O-O {[%clk 0:02:47.4]} 9. Bf4 {[%clk 0:02:21.9]} 9... Bg4 {[%clk 0:02:39.6]} 10.
h3 {[%clk 0:02:10.7]} 10... Bxf3 {[%clk 0:02:37.5]} 11. Bxf3 {[%clk 0:02:10.7]}
11... dxc4 {[%clk 0:02:33.2]} 12. d5 {[%clk 0:02:09.3]} 12... Nb4 {[%clk
0:02:28.5]} 13. d6 {[%clk 0:02:02.8]} 13... Nd3 {[%clk 0:02:25.8]} 14. dxe7
{[%clk 0:01:45.7]} 14... Qxe7 {[%clk 0:02:23.8]} 15. Bg3 {[%clk 0:01:46]} 15...
Rad8 {[%clk 0:02:14.1]} 16. Qc2 {[%clk 0:01:45.7]} 16... Rfe8 {[%clk 0:01:54.6]}
17. Nb5 {[%clk 0:01:44.5]} 17... Qc5 {[%clk 0:01:47.6]} 18. a4 {[%clk
0:01:38.9]} 18... Nd5 {[%clk 0:01:36.9]} 19. Bxd5 {[%clk 0:01:28.7]} 19... Rxd5
{[%clk 0:01:34.7]} 20. Nc7 {[%clk 0:01:28.1]} 20... Nb4 {[%clk 0:01:31.3]} 21.
Qc1 {[%clk 0:01:17.5]} 21... Red8 {[%clk 0:01:27.2]} 22. Nxd5 {[%clk 0:01:15.8]}
22... Qxd5 {[%clk 0:01:27.6]} 23. Rd1 {[%clk 0:00:59.7]} 23... Nd3 {[%clk
0:01:27.5]} 24. Qc2 {[%clk 0:00:51.6]} 24... h5 {[%clk 0:01:20.6]} 25. Rab1
{[%clk 0:00:45]} 25... Qe6 {[%clk 0:01:08.9]} 26. b3 {[%clk 0:00:39.9]} 26...
Ne5 {[%clk 0:01:00.4]} 27. Bxe5 {[%clk 0:00:37]} 27... Rxd1+ {[%clk 0:00:52]}
28. Rxd1 {[%clk 0:00:36.2]} 28... cxb3 {[%clk 0:00:48]} 29. Rd8+ {[%clk
0:00:15.9]} 29... Kh7 {[%clk 0:00:47.1]} 30. Qc8 {[%clk 0:00:13.3]} 30... Qxe5
{[%clk 0:00:43.4]} 31. Qxb7 {[%clk 0:00:11.1]} 31... Qe1+ {[%clk 0:00:40.2]} 32.
Kh2 {[%clk 0:00:10]} 32... b2 {[%clk 0:00:38.6]} 33. Qb3 {[%clk 0:00:05.3]}
33... Be5+ {[%clk 0:00:34.7]} 34. g3 {[%clk 0:00:04.6]} 34... Qxf2+ {[%clk
0:00:34]} 35. Kh1 {[%clk 0:00:04.2]} 35... Qf1+ {[%clk 0:00:31.5]} 36. Kh2
{[%clk 0:00:04]} 36... b1=Q {[%clk 0:00:18.1]} 0-1

[Event "Early-Titled-Tuesday-Blitz-April-02-2024"]
[Site "Chess.com"]
[Date "2024.04.02"]
[Round "4"]
[White "EdmundPlayer"]
[Black "vladoboch"]
[Result "0-1"]
[WhiteElo "2276"]
[BlackElo "2514"]
[TimeControl "180+1"]
[EndTime "8:38:56 PDT"]
[Termination "vladoboch won by checkmate"]

1. c4 {[%clk 0:02:51.2]} 1... e5 {[%clk 0:02:58.8]} 2. Nc3 {[%clk 0:02:49.7]}
2... Bb4 {[%clk 0:02:39.1]} 3. e3 {[%clk 0:02:37.5]} 3... Nf6 {[%clk 0:02:24]}
4. Nge2 {[%clk 0:02:32.1]} 4... d6 {[%clk 0:02:18.5]} 5. a3 {[%clk 0:02:31.4]}
5... Bc5 {[%clk 0:02:18.3]} 6. b4 {[%clk 0:02:27.4]} 6... Bb6 {[%clk 0:02:18.6]}
7. Na4 {[%clk 0:02:27.3]} 7... O-O {[%clk 0:02:08.2]} 8. Bb2 {[%clk 0:02:24.6]}
8... Bf5 {[%clk 0:01:51.7]} 9. Nec3 {[%clk 0:02:01.2]} 9... e4 {[%clk
0:01:47.8]} 10. h3 {[%clk 0:01:39.4]} 10... c6 {[%clk 0:01:47.9]} 11. g4 {[%clk
0:01:39.1]} 11... Bg6 {[%clk 0:01:48.3]} 12. Bg2 {[%clk 0:01:39.1]} 12... Re8
{[%clk 0:01:37.1]} 13. Nxb6 {[%clk 0:01:36.1]} 13... axb6 {[%clk 0:01:36.5]} 14.
Ne2 {[%clk 0:01:36]} 14... Nbd7 {[%clk 0:01:28.5]} 15. Nf4 {[%clk 0:01:24.2]}
15... Ne5 {[%clk 0:01:28.1]} 16. O-O {[%clk 0:01:12.9]} 16... Nxc4 {[%clk
0:01:15.5]} 17. Qc2 {[%clk 0:01:05.4]} 17... d5 {[%clk 0:01:15.4]} 18. a4 {[%clk
0:00:37.1]} 18... Nd7 {[%clk 0:00:55.5]} 19. Bc3 {[%clk 0:00:34.8]} 19... Nde5
{[%clk 0:00:52.6]} 20. Qb3 {[%clk 0:00:26.3]} 20... Qh4 {[%clk 0:00:44.3]} 21.
a5 {[%clk 0:00:18.2]} 21... b5 {[%clk 0:00:42.8]} 22. Bd4 {[%clk 0:00:17.7]}
22... Nxd2 {[%clk 0:00:40.1]} 23. Qc3 {[%clk 0:00:14.3]} 23... Nef3+ {[%clk
0:00:36.9]} 24. Kh1 {[%clk 0:00:07.2]} 24... f6 {[%clk 0:00:27.1]} 25. Bc5
{[%clk 0:00:05.4]} 25... Nxf1 {[%clk 0:00:22.2]} 26. Rxf1 {[%clk 0:00:06.3]}
26... Kf7 {[%clk 0:00:17]} 27. Qb2 {[%clk 0:00:06.4]} 27... Ne5 {[%clk
0:00:14.9]} 28. Qd4 {[%clk 0:00:05.8]} 28... Nxg4 {[%clk 0:00:14.9]} 29. Kg1
{[%clk 0:00:05]} 29... Ne5 {[%clk 0:00:15]} 30. Ra1 {[%clk 0:00:03.7]} 30...
Nf3+ {[%clk 0:00:15.1]} 31. Bxf3 {[%clk 0:00:03.6]} 31... exf3 {[%clk 0:00:16]}
32. Rb1 {[%clk 0:00:03.2]} 32... Bxb1 {[%clk 0:00:15.8]} 33. Nxd5 {[%clk
0:00:03]} 33... Qg5+ {[%clk 0:00:15.9]} 34. Kf1 {[%clk 0:00:02.7]} 34... Qxd5
{[%clk 0:00:16.1]} 35. Ke1 {[%clk 0:00:03.6]} 35... Qxd4 {[%clk 0:00:15.8]} 36.
Kf1 {[%clk 0:00:01.8]} 36... Qd1# {[%clk 0:00:11.3]} 0-1

[Event "Early-Titled-Tuesday-Blitz-April-02-2024"]
[Site "Chess.com"]
[Date "2024.04.02"]
[Round "4"]
[White "NigiriSushies"]
[Black "Gennady_Kozlov"]
[Result "0-1"]
[WhiteElo "2311"]
[BlackElo "2627"]
[TimeControl "180+1"]
[EndTime "8:38:57 PDT"]
[Termination "Gennady_Kozlov won by resignation"]

1. e4 {[%clk 0:03:00.9]} 1... e6 {[%clk 0:02:58.6]} 2. d4 {[%clk 0:03:00.5]}
2... d5 {[%clk 0:02:59]} 3. e5 {[%clk 0:03:00.9]} 3... c5 {[%clk 0:02:58.5]} 4.
c3 {[%clk 0:03:01.6]} 4... Nc6 {[%clk 0:02:58.5]} 5. Nf3 {[%clk 0:03:02]} 5...
Bd7 {[%clk 0:02:58.7]} 6. Bd3 {[%clk 0:02:59.6]} 6... Qb6 {[%clk 0:02:59]} 7.
O-O {[%clk 0:02:59.8]} 7... f6 {[%clk 0:02:57.7]} 8. exf6 {[%clk 0:02:57.3]}
8... Nxf6 {[%clk 0:02:58.6]} 9. Re1 {[%clk 0:02:55.6]} 9... Bd6 {[%clk 0:02:54]}
10. dxc5 {[%clk 0:02:50.5]} 10... Bxc5 {[%clk 0:02:53.2]} 11. Be3 {[%clk
0:02:50.6]} 11... O-O-O {[%clk 0:02:51.9]} 12. b4 {[%clk 0:02:38.3]} 12... Bxe3
{[%clk 0:02:50.6]} 13. Rxe3 {[%clk 0:02:38.9]} 13... Ng4 {[%clk 0:02:50.6]} 14.
Re2 {[%clk 0:02:39.3]} 14... a6 {[%clk 0:02:31.9]} 15. a4 {[%clk 0:02:38.4]}
15... Rhf8 {[%clk 0:02:26.9]} 16. a5 {[%clk 0:02:32.9]} 16... Qc7 {[%clk
0:02:25.1]} 17. h3 {[%clk 0:02:28.3]} 17... Rxf3 {[%clk 0:02:23.5]} 18. hxg4
{[%clk 0:02:27.3]} 18... Ne5 {[%clk 0:02:09.5]} 19. gxf3 {[%clk 0:01:35.1]}
19... Nxf3+ {[%clk 0:02:04.2]} 20. Kf1 {[%clk 0:01:35.3]} 20... Qh2 {[%clk
0:02:01.7]} 21. Re3 {[%clk 0:01:27.5]} 21... Rf8 {[%clk 0:01:55.8]} 22. Qxf3
{[%clk 0:00:51.7]} 22... Rxf3 {[%clk 0:01:51.6]} 23. Rxf3 {[%clk 0:00:52.6]}
23... e5 {[%clk 0:01:47.2]} 24. Bf5 {[%clk 0:00:38.2]} 24... e4 {[%clk
0:01:44.9]} 25. Bxd7+ {[%clk 0:00:37.9]} 25... Kxd7 {[%clk 0:01:44.8]} 26. Rf7+
{[%clk 0:00:36.8]} 26... Ke6 {[%clk 0:01:44.3]} 27. Rxb7 {[%clk 0:00:28.7]}
27... Qh1+ {[%clk 0:01:43.7]} 28. Ke2 {[%clk 0:00:28.3]} 28... Qf3+ {[%clk
0:01:44.6]} 29. Ke1 {[%clk 0:00:28.6]} 29... Qh1+ {[%clk 0:01:38.5]} 30. Ke2
{[%clk 0:00:20.5]} 30... Qc1 {[%clk 0:01:37.7]} 31. Rb6+ {[%clk 0:00:15.6]}
31... Ke5 {[%clk 0:01:37.1]} 32. Ra2 {[%clk 0:00:11.6]} 32... Qxb1 {[%clk
0:01:36.4]} 33. Rd2 {[%clk 0:00:12.1]} 33... Qg1 {[%clk 0:01:28.1]} 34. Rxa6
{[%clk 0:00:10.7]} 34... Qxg4+ {[%clk 0:01:26.3]} 35. Ke1 {[%clk 0:00:11.1]}
35... Kf4 {[%clk 0:01:14.7]} 36. Rxd5 {[%clk 0:00:05.6]} 36... Qg1+ {[%clk
0:01:13.8]} 37. Ke2 {[%clk 0:00:05.4]} 37... Qg4+ {[%clk 0:01:12.1]} 38. Kd2
{[%clk 0:00:05.1]} 38... Kf3 {[%clk 0:01:11.6]} 39. Ra8 {[%clk 0:00:03.2]} 39...
Qf4+ {[%clk 0:01:09.6]} 40. Ke1 {[%clk 0:00:02.1]} 40... Qc1+ {[%clk 0:01:07.5]}
41. Rd1 {[%clk 0:00:02.7]} 41... Qxc3+ {[%clk 0:01:07.4]} 42. Rd2 {[%clk
0:00:02.3]} 42... Qxb4 {[%clk 0:01:05.1]} 43. Rd8 {[%clk 0:00:01.2]} 43... Qxa5
{[%clk 0:01:00.1]} 44. Rf8+ {[%clk 0:00:01.2]} 44... Kg4 {[%clk 0:00:59.6]} 45.
Re8 {[%clk 0:00:01.4]} 45... Qb4 {[%clk 0:00:54.7]} 46. Ke2 {[%clk 0:00:01.1]}
46... Qb5+ {[%clk 0:00:52.8]} 47. Ke3 {[%clk 0:00:01.7]} 47... Qxe8 {[%clk
0:00:53.4]} 48. Rd4 {[%clk 0:00:01.7]} 48... h5 {[%clk 0:00:52.4]} 49. Rxe4+
{[%clk 0:00:01.8]} 49... Qxe4+ {[%clk 0:00:51.4]} 50. Kxe4 {[%clk 0:00:02.7]}
50... h4 {[%clk 0:00:51.4]} 51. f3+ {[%clk 0:00:03.6]} 51... Kg3 {[%clk
0:00:50.6]} 52. Ke3 {[%clk 0:00:04.5]} 52... h3 {[%clk 0:00:50.8]} 53. f4 {[%clk
0:00:05.4]} 53... h2 {[%clk 0:00:51.2]} 54. f5 {[%clk 0:00:06.3]} 54... h1=Q
{[%clk 0:00:51.5]} 55. f6 {[%clk 0:00:07.2]} 55... gxf6 {[%clk 0:00:51.2]} 56.
Kd4 {[%clk 0:00:06.6]} 56... f5 {[%clk 0:00:50.9]} 57. Ke3 {[%clk 0:00:07.5]}
0-1